[Event "56th Biel Festival MTO 2023"]
[White "Bu,Xiangzhi"]
[Black "Karthik Rajaa"]
[Site "Biel"]
[Round "1.1"]
[Annotator "ChessBase"]
[Result "1-0"]
[Date "2023.07.18"]
[WhiteElo "2676"]
[BlackElo "2276"]
[PlyCount "103"]
[TimeControl "60"]

1. Nf3 {[%emt 0:0:0]} Nf6 {[%emt 0:0:0]} 2. c4 {[%emt 0:0:0]} c5 {[%emt 0:0:0]} 3. Nc3 {[%emt 0:0:0]} Nc6 {[%emt 0:0:0]} 4. d4 {[%emt 0:0:0]} cxd4 {[%emt 0:0:0]} 5. Nxd4 {[%emt 0:0:0]} e6 {[%emt 0:0:0]} 6. a3 {[%emt 0:0:0]} d5 {[%emt 0:4:13]} 7. cxd5 {[%emt 0:0:0]} Nxd5 {[%emt 0:5:18]} 8. Nxc6 {[%emt 0:0:0]} bxc6 {[%emt 0:0:3]} 9. Qc2 {[%emt 0:3:59]} Be7 {[%emt 0:4:36]} 10. Bd2 {[%emt 0:1:19]} O-O {[%emt 0:3:34]} 11. e3 {[%emt 0:0:8]} a5 {[%emt 0:9:53]} 12. Na4 {[%emt 0:5:35]} Ba6 {[%emt 0:7:36]} 13. Bxa6 {[%emt 0:0:59]} Rxa6 {[%emt 0:0:2]} 14. O-O {[%emt 0:0:7]} Qb8 {[%emt 0:7:1]} 15. Rfd1 {[%emt 0:6:4]} Qb5 {[%emt 0:16:24]} 16. Rac1 {[%emt 0:0:49]} Rc8 {[%emt 0:6:6]} 17. e4 {[%emt 0:4:7]} Nb6 {[%emt 0:7:31]} 18. Nc5 {[%emt 0:1:55]} Bxc5 {[%emt 0:7:49]} 19. Qxc5 {[%emt 0:0:2]} Qxc5 {[%emt 0:4:21]} 20. Rxc5 {[%emt 0:0:3]} Na4 {[%emt 0:0:8]} 21. Rc2 {[%emt 0:0:11]} Kf8 {[%emt 0:1:11]} 22. b3 {[%emt 0:1:58]} Nb6 {[%emt 0:0:12]} 23. a4 {[%emt 0:0:5]} Nd7 {[%emt 0:4:48]} 24. Bxa5 {[%emt 0:1:13]} Ke8 {[%emt 0:0:52]} 25. Be1 {[%emt 0:4:11]} c5 {[%emt 0:0:56]} 26. a5 {[%emt 0:0:25]} Rb8 {[%emt 0:0:45]} 27. Rd3 {[%emt 0:1:2]} c4 {[%emt 0:0:54]} 28. Rg3 {[%emt 0:7:27]} cxb3 {[%emt 0:1:29]} 29. Rb2 {[%emt 0:0:3]} Nc5 {[%emt 0:1:16]} 30. Rxg7 {[%emt 0:0:9]} Rb7 {[%emt 0:1:46]} 31. Rg3 {[%emt 0:1:14]} Rd6 {[%emt 0:1:15]} 32. Rb1 {[%emt 0:18:57]} b2 {[%emt 0:0:45]} 33. Ra3 {[%emt 0:1:16]} Nd3 {[%emt 0:1:19]} 34. Bc3 {[%emt 0:0:55]} Nf4 {[%emt 0:1:41]} 35. Kf1 {[%emt 0:4:20]} Nd3 {[%emt 0:1:55]} 36. g3 {[%emt 0:1:22]} h5 {[%emt 0:1:32]} 37. h4 {[%emt 0:1:22]} Kf8 {[%emt 0:0:49]} 38. Ke2 {[%emt 0:1:43]} Nc1+ {[%emt 0:0:22]} 39. Kf3 {[%emt 0:0:5]} Nd3 {[%emt 0:0:20]} 40. Ke3 {[%emt 0:0:0]} Kg8 {[%emt 0:0:0]} 41. a6 {[%emt 0:0:0]} Ra7 {[%emt 0:0:0]} 42. Ra5 {[%emt 0:0:0]} Nc1 {[%emt 0:0:0]} 43. Rg5+ {[%emt 0:0:0]} Kh7 {[%emt 0:0:0]} 44. Rxh5+ {[%emt 0:0:0]} Kg6 {[%emt 0:0:0]} 45. Rg5+ {[%emt 0:0:0]} Kh6 {[%emt 0:0:0]} 46. Bxb2 {[%emt 0:0:0]} Rd3+ {[%emt 0:0:0]} 47. Kf4 {[%emt 0:0:0]} Ne2+ {[%emt 0:0:0]} 48. Kg4 {[%emt 0:0:0]} Rxa6 {[%emt 0:0:0]} 49. Bg7+ {[%emt 0:0:0]} Kh7 {[%emt 0:0:0]} 50. Rb8 {[%emt 0:0:0]} f5+ {[%emt 0:0:0]} 51. Kh5 {[%emt 0:0:0]} fxe4 {[%emt 0:0:0]} 52. Rh8# {[%emt 0:0:0]} 1-0

[Event "56th Biel Festival MTO 2023"]
[White "Asllani,Dorian"]
[Black "Nguyen,Ngoc Truong Son"]
[Site "Biel"]
[Round "1.2"]
[Annotator "ChessBase"]
[Result "0-1"]
[Date "2023.07.18"]
[WhiteElo "2272"]
[BlackElo "2645"]
[PlyCount "88"]
[TimeControl "60"]

1. d4 {[%emt 0:0:0]} Nf6 {[%emt 0:0:0]} 2. c4 {[%emt 0:0:0]} e6 {[%emt 0:0:0]} 3. Nc3 {[%emt 0:0:0]} Bb4 {[%emt 0:0:0]} 4. Qc2 {[%emt 0:0:0]} c5 {[%emt 0:0:0]} 5. e3 {[%emt 0:0:0]} b6 {[%emt 0:0:0]} 6. Be2 {[%emt 0:1:7]} Bb7 {[%emt 0:0:0]} 7. Bf3 {[%emt 0:1:56]} Qc8 {[%emt 0:2:47]} 8. a3 {[%emt 0:18:18]} Bxc3+ {[%emt 0:6:28]} 9. Qxc3 {[%emt 0:0:44]} O-O {[%emt 0:3:43]} 10. b3 {[%emt 0:18:10]} d5 {[%emt 0:8:19]} 11. dxc5 {[%emt 0:11:59]} Qxc5 {[%emt 0:5:59]} 12. Bb2 {[%emt 0:8:9]} Nbd7 {[%emt 0:2:26]} 13. b4 {[%emt 0:5:2]} Qe7 {[%emt 0:8:25]} 14. cxd5 {[%emt 0:1:25]} Rac8 {[%emt 0:1:11]} 15. Qd3 {[%emt 0:9:29]} Nxd5 {[%emt 0:9:46]} 16. Ne2 {[%emt 0:1:49]} a5 {[%emt 0:1:7]} 17. e4 {[%emt 0:5:22]} N5f6 {[%emt 0:5:24]} 18. O-O {[%emt 0:0:47]} Rfd8 {[%emt 0:1:14]} 19. Qe3 {[%emt 0:2:50]} axb4 {[%emt 0:15:1]} 20. axb4 {[%emt 0:0:19]} Qxb4 {[%emt 0:1:49]} 21. Ba3 {[%emt 0:2:56]} Qb5 {[%emt 0:0:30]} 22. Rfb1 {[%emt 0:1:49]} Qe5 {[%emt 0:0:36]} 23. Bb2 {[%emt 0:0:39]} Qc7 {[%emt 0:0:47]} 24. Bd4 {[%emt 0:6:17]} Ra8 {[%emt 0:4:7]} 25. Rxa8 {[%emt 0:2:32]} Rxa8 {[%emt 0:0:35]} 26. Nc3 {[%emt 0:0:22]} e5 {[%emt 0:4:16]} 27. Bxb6 {[%emt 0:0:38]} Nxb6 {[%emt 0:0:48]} 28. Qxb6 {[%emt 0:1:20]} Qxb6 {[%emt 0:0:14]} 29. Rxb6 {[%emt 0:0:0]} Bxe4 {[%emt 0:0:23]} 30. Bd1 {[%emt 0:0:59]} Rc8 {[%emt 0:6:30]} 31. f4 {[%emt 0:0:30]} Bf5 {[%emt 0:3:20]} 32. fxe5 {[%emt 0:0:30]} Nd7 {[%emt 0:0:8]} 33. Rb3 {[%emt 0:0:27]} Be6 {[%emt 0:1:21]} 34. Ra3 {[%emt 0:0:1]} Nxe5 {[%emt 0:0:8]} 35. Be2 {[%emt 0:0:24]} h6 {[%emt 0:0:23]} 36. Kf2 {[%emt 0:0:34]} g5 {[%emt 0:0:25]} 37. Ne4 {[%emt 0:0:34]} Rc2 {[%emt 0:0:47]} 38. h3 {[%emt 0:0:59]} Kg7 {[%emt 0:4:0]} 39. Rc3 {[%emt 0:0:20]} Rb2 {[%emt 0:0:27]} 40. g4 {[%emt 0:0:0]} Ng6 {[%emt 0:0:0]} 41. Ke3 {[%emt 0:0:0]} Nf4 {[%emt 0:0:0]} 42. Bc4 {[%emt 0:0:0]} Bxc4 {[%emt 0:0:0]} 43. Rxc4 {[%emt 0:0:0]} Rb3+ {[%emt 0:0:0]} 44. Kd4 {[%emt 0:0:0]} Rxh3 {[%emt 0:0:0]} 0-1

[Event "56th Biel Festival MTO 2023"]
[White "Aryan Chopra"]
[Black "Abdulrahman Mohammad,Al Taher"]
[Site "Biel"]
[Round "1.3"]
[Annotator "ChessBase"]
[Result "1-0"]
[Date "2023.07.18"]
[WhiteElo "2626"]
[BlackElo "2258"]
[PlyCount "63"]
[TimeControl "60"]

1. e4 {[%emt 0:0:0]} c5 {[%emt 0:0:0]} 2. Nf3 {[%emt 0:0:0]} Nc6 {[%emt 0:0:0]} 3. d4 {[%emt 0:0:0]} cxd4 {[%emt 0:0:0]} 4. Nxd4 {[%emt 0:0:0]} g6 {[%emt 0:0:0]} 5. c4 {[%emt 0:0:0]} Nf6 {[%emt 0:0:0]} 6. Nc3 {[%emt 0:0:0]} Nxd4 {[%emt 0:0:0]} 7. Qxd4 {[%emt 0:0:0]} d6 {[%emt 0:0:0]} 8. Be2 {[%emt 0:0:0]} Bg7 {[%emt 0:0:0]} 9. Be3 {[%emt 0:0:0]} O-O {[%emt 0:0:0]} 10. Qd3 {[%emt 0:0:0]} a5 {[%emt 0:0:0]} 11. O-O {[%emt 0:0:0]} a4 {[%emt 0:2:26]} 12. f4 {[%emt 0:0:0]} Qa5 {[%emt 0:2:42]} 13. Bd4 {[%emt 0:0:0]} Bd7 {[%emt 0:15:15]} 14. e5 {[%emt 0:10:18]} Bf5 {[%emt 0:3:23]} 15. Qe3 {[%emt 0:2:38]} Nd7 {[%emt 0:2:45]} 16. Nd5 {[%emt 0:7:58]} Qd8 {[%emt 0:11:25]} 17. Rad1 {[%emt 0:3:34]} Be6 {[%emt 0:7:9]} 18. exd6 {[%emt 0:5:32]} exd6 {[%emt 0:8:56]} 19. Bxg7 {[%emt 0:0:12]} Kxg7 {[%emt 0:0:5]} 20. Qd4+ {[%emt 0:0:18]} Kg8 {[%emt 0:0:41]} 21. Nc3 {[%emt 0:3:26]} Qa5 {[%emt 0:16:33]} 22. Ne4 {[%emt 0:7:6]} Rfd8 {[%emt 0:5:39]} 23. Nxd6 {[%emt 0:2:14]} Nb6 {[%emt 0:3:15]} 24. f5 {[%emt 0:7:56]} gxf5 {[%emt 0:9:59]} 25. Rf3 {[%emt 0:1:36]} Rd7 {[%emt 0:2:25]} 26. c5 {[%emt 0:5:6]} Rad8 {[%emt 0:3:20]} 27. Rg3+ {[%emt 0:3:19]} Kf8 {[%emt 0:0:2]} 28. Qg7+ {[%emt 0:0:5]} Ke7 {[%emt 0:0:7]} 29. Qg5+ {[%emt 0:0:3]} Kf8 {[%emt 0:0:12]} 30. Qh6+ {[%emt 0:0:3]} Ke7 {[%emt 0:0:22]} 31. Nxf5+ {[%emt 0:0:3]} Bxf5 {[%emt 0:0:25]} 32. Re3+ {[%emt 0:0:3]} 1-0

[Event "56th Biel Festival MTO 2023"]
[White "Gomez Barrera,Javiera Belen"]
[Black "Yuffa,Daniil"]
[Site "Biel"]
[Round "1.4"]
[Annotator "ChessBase"]
[Result "0-1"]
[Date "2023.07.18"]
[WhiteElo "2256"]
[BlackElo "2603"]
[PlyCount "58"]
[TimeControl "60"]

1. e4 {[%emt 0:0:0]} c6 {[%emt 0:0:0]} 2. d4 {[%emt 0:0:0]} d5 {[%emt 0:0:0]} 3. e5 {[%emt 0:0:0]} Bf5 {[%emt 0:0:0]} 4. Nc3 {[%emt 0:0:0]} e6 {[%emt 0:0:0]} 5. g4 {[%emt 0:3:10]} Bg6 {[%emt 0:0:0]} 6. Nge2 {[%emt 0:1:38]} Ne7 {[%emt 0:0:0]} 7. Nf4 {[%emt 0:5:44]} c5 {[%emt 0:0:0]} 8. h4 {[%emt 0:3:56]} cxd4 {[%emt 0:0:0]} 9. Nb5 {[%emt 0:0:56]} Nec6 {[%emt 0:0:0]} 10. h5 {[%emt 0:17:44]} Be4 {[%emt 0:0:0]} 11. f3 {[%emt 0:2:7]} a6 {[%emt 0:0:0]} 12. fxe4 {[%emt 0:7:12]} axb5 {[%emt 0:0:0]} 13. exd5 {[%emt 0:0:47]} exd5 {[%emt 0:1:6]} 14. Bg2 {[%emt 0:7:24]} Bb4+ {[%emt 0:6:43]} 15. Bd2 {[%emt 0:1:2]} Bxd2+ {[%emt 0:2:57]} 16. Qxd2 {[%emt 0:0:1]} O-O {[%emt 0:0:12]} 17. h6 {[%emt 0:10:33]} Nxe5 {[%emt 0:16:55]} 18. hxg7 {[%emt 0:1:44]} Re8 {[%emt 0:0:13]} 19. O-O {[%emt 0:0:53]} Qg5 {[%emt 0:12:3]} 20. Rad1 {[%emt 0:2:50]} Nbd7 {[%emt 0:4:43]} 21. Qxd4 {[%emt 0:9:3]} Nxg4 {[%emt 0:10:16]} 22. Qxd5 {[%emt 0:7:20]} Nde5 {[%emt 0:1:6]} 23. Rde1 {[%emt 0:6:14]} Qh6 {[%emt 0:8:32]} 24. Nh3 {[%emt 0:4:34]} Ne3 {[%emt 0:9:59]} 25. Qd2 {[%emt 0:2:5]} N5c4 {[%emt 0:2:24]} 26. Qd7 {[%emt 0:1:24]} Qxg7 {[%emt 0:0:17]} 27. Rf2 {[%emt 0:1:42]} Ne5 {[%emt 0:3:25]} 28. Qxb7 {[%emt 0:0:42]} Rab8 {[%emt 0:1:2]} 29. Qe4 {[%emt 0:2:55]} N5g4 {[%emt 0:0:28]} 0-1

[Event "56th Biel Festival MTO 2023"]
[White "Albornoz Cabrera,Carlos Daniel"]
[Black "Joly,Julien"]
[Site "Biel"]
[Round "1.5"]
[Annotator "ChessBase"]
[Result "1-0"]
[Date "2023.07.18"]
[WhiteElo "2591"]
[BlackElo "2249"]
[PlyCount "151"]
[TimeControl "60"]

1. e4 {[%emt 0:0:0]} c5 {[%emt 0:0:0]} 2. Nf3 {[%emt 0:0:0]} a6 {[%emt 0:0:0]} 3. c3 {[%emt 0:0:0]} e6 {[%emt 0:0:0]} 4. d4 {[%emt 0:0:0]} d5 {[%emt 0:0:0]} 5. e5 {[%emt 0:0:0]} Bd7 {[%emt 0:0:0]} 6. Bd3 {[%emt 0:0:0]} cxd4 {[%emt 0:0:0]} 7. cxd4 {[%emt 0:0:0]} Bb5 {[%emt 0:0:0]} 8. Bc2 {[%emt 0:2:36]} a5 {[%emt 0:10:54]} 9. a3 {[%emt 0:4:55]} Be7 {[%emt 0:12:16]} 10. Nc3 {[%emt 0:1:0]} Ba6 {[%emt 0:2:20]} 11. Ne2 {[%emt 0:4:7]} Nc6 {[%emt 0:5:54]} 12. O-O {[%emt 0:0:47]} Nh6 {[%emt 0:1:32]} 13. Re1 {[%emt 0:6:59]} Nf5 {[%emt 0:4:11]} 14. Bxf5 {[%emt 0:4:18]} exf5 {[%emt 0:0:6]} 15. Nf4 {[%emt 0:7:32]} O-O {[%emt 0:3:42]} 16. e6 {[%emt 0:7:17]} Bd6 {[%emt 0:13:41]} 17. h4 {[%emt 0:11:58]} Bxf4 {[%emt 0:20:44]} 18. exf7+ {[%emt 0:6:44]} Rxf7 {[%emt 0:0:17]} 19. Bxf4 {[%emt 0:0:5]} Qb6 {[%emt 0:6:27]} 20. Qd2 {[%emt 0:10:52]} Re7 {[%emt 0:3:19]} 21. Rxe7 {[%emt 0:2:32]} Nxe7 {[%emt 0:0:30]} 22. Re1 {[%emt 0:0:43]} Ng6 {[%emt 0:2:44]} 23. Bg3 {[%emt 0:2:46]} h6 {[%emt 0:5:30]} 24. h5 {[%emt 0:2:6]} Nf8 {[%emt 0:0:50]} 25. Re7 {[%emt 0:4:15]} Qf6 {[%emt 0:0:35]} 26. Bh4 {[%emt 0:3:1]} Qd6 {[%emt 0:0:30]} 27. Qc2 {[%emt 0:1:45]} g5 {[%emt 0:1:57]} 28. hxg6 {[%emt 0:3:33]} Nxg6 {[%emt 0:0:6]} 29. Re1 {[%emt 0:2:6]} Rf8 {[%emt 0:0:55]} 30. g3 {[%emt 0:4:6]} Bb5 {[%emt 0:2:23]} 31. Ne5 {[%emt 0:0:27]} Nxh4 {[%emt 0:2:22]} 32. gxh4 {[%emt 0:0:1]} Qf6 {[%emt 0:1:13]} 33. Qb3 {[%emt 0:2:21]} Bc6 {[%emt 0:1:23]} 34. Qg3+ {[%emt 0:1:59]} Kh7 {[%emt 0:0:35]} 35. Qf4 {[%emt 0:0:13]} Rg8+ {[%emt 0:0:25]} 36. Kh2 {[%emt 0:0:7]} Rg7 {[%emt 0:0:34]} 37. Re3 {[%emt 0:1:18]} Be8 {[%emt 0:0:32]} 38. Rf3 {[%emt 0:1:6]} Bg6 {[%emt 0:0:29]} 39. Rg3 {[%emt 0:3:35]} Bh5 {[%emt 0:0:29]} 40. Rxg7+ {[%emt 0:0:0]} Kxg7 {[%emt 0:0:0]} 41. Nd7 {[%emt 0:0:0]} Qe7 {[%emt 0:0:0]} 42. Nc5 {[%emt 0:0:0]} b6 {[%emt 0:0:0]} 43. Nd3 {[%emt 0:2:39]} Qe4 {[%emt 0:4:55]} 44. Qc7+ {[%emt 0:4:27]} Kg8 {[%emt 0:4:24]} 45. Qg3+ {[%emt 0:2:38]} Kh7 {[%emt 0:2:33]} 46. Qc7+ {[%emt 0:4:11]} Kg8 {[%emt 0:0:6]} 47. Qb8+ {[%emt 0:2:26]} Kh7 {[%emt 0:1:6]} 48. Nf4 {[%emt 0:0:5]} Bf7 {[%emt 0:3:8]} 49. Qe5 {[%emt 0:2:18]} Kg8 {[%emt 0:1:17]} 50. Qxe4 {[%emt 0:1:51]} fxe4 {[%emt 0:2:12]} 51. Kg3 {[%emt 0:0:17]} Kg7 {[%emt 0:0:22]} 52. Ne2 {[%emt 0:2:6]} Be8 {[%emt 0:4:42]} 53. Nc3 {[%emt 0:2:31]} Bc6 {[%emt 0:0:5]} 54. Kg4 {[%emt 0:2:24]} Kg6 {[%emt 0:1:21]} 55. b4 {[%emt 0:3:41]} axb4 {[%emt 0:0:33]} 56. axb4 {[%emt 0:0:1]} b5 {[%emt 0:0:12]} 57. Kf4 {[%emt 0:1:53]} Kf6 {[%emt 0:0:6]} 58. Nd1 {[%emt 0:1:23]} Bd7 {[%emt 0:1:12]} 59. Kg3 {[%emt 0:1:24]} Kg6 {[%emt 0:0:30]} 60. Nc3 {[%emt 0:0:0]} Bc6 {[%emt 0:0:0]} 61. Kg4 {[%emt 0:0:0]} h5+ {[%emt 0:0:0]} 62. Kf4 {[%emt 0:0:0]} Kf6 {[%emt 0:0:0]} 63. Nd1 {[%emt 0:0:0]} Bd7 {[%emt 0:0:0]} 64. Kg3 {[%emt 0:0:0]} Kg6 {[%emt 0:0:0]} 65. Nc3 {[%emt 0:0:0]} Bc6 {[%emt 0:0:0]} 66. Ne2 {[%emt 0:0:0]} Kg7 {[%emt 0:3:11]} 67. Kf4 {[%emt 0:0:0]} Kf6 {[%emt 0:0:6]} 68. Nc3 {[%emt 0:0:0]} Ke6 {[%emt 0:5:32]} 69. Kg5 {[%emt 0:0:0]} Be8 {[%emt 0:0:16]} 70. Ne2 {[%emt 0:0:0]} Bf7 {[%emt 0:0:22]} 71. Nf4+ {[%emt 0:0:0]} Ke7 {[%emt 0:0:4]} 72. Nxh5 {[%emt 0:0:0]} Bxh5 {[%emt 0:1:21]} 73. Kxh5 {[%emt 0:0:0]} Kf6 {[%emt 0:0:4]} 74. Kg4 {[%emt 0:0:0]} Kg6 {[%emt 0:0:5]} 75. h5+ {[%emt 0:0:0]} Kh6 {[%emt 0:0:29]} 76. Kh4 {[%emt 0:0:0]} 1-0

[Event "56th Biel Festival MTO 2023"]
[White "Lohia,Sohum"]
[Black "Erdos,Viktor"]
[Site "Biel"]
[Round "1.6"]
[Annotator "ChessBase"]
[Result "1/2-1/2"]
[Date "2023.07.18"]
[WhiteElo "2247"]
[BlackElo "2571"]
[PlyCount "52"]
[TimeControl "60"]

1. e4 {[%emt 0:0:0]} e5 {[%emt 0:0:0]} 2. Nf3 {[%emt 0:0:0]} Nc6 {[%emt 0:0:0]} 3. Bb5 {[%emt 0:0:0]} a6 {[%emt 0:0:0]} 4. Ba4 {[%emt 0:0:0]} Nf6 {[%emt 0:0:0]} 5. O-O {[%emt 0:0:0]} Be7 {[%emt 0:0:0]} 6. d3 {[%emt 0:0:0]} d6 {[%emt 0:0:0]} 7. c3 {[%emt 0:0:0]} O-O {[%emt 0:0:0]} 8. Re1 {[%emt 0:0:0]} Re8 {[%emt 0:0:0]} 9. Nbd2 {[%emt 0:0:0]} Bf8 {[%emt 0:0:0]} 10. Nf1 {[%emt 0:0:0]} h6 {[%emt 0:0:0]} 11. Ng3 {[%emt 0:2:48]} b5 {[%emt 0:0:47]} 12. Bc2 {[%emt 0:1:21]} d5 {[%emt 0:1:12]} 13. h3 {[%emt 0:11:24]} dxe4 {[%emt 0:18:43]} 14. dxe4 {[%emt 0:1:3]} Be6 {[%emt 0:1:9]} 15. Be3 {[%emt 0:4:46]} Qxd1 {[%emt 0:13:7]} 16. Rexd1 {[%emt 0:1:27]} Red8 {[%emt 0:0:12]} 17. Rxd8 {[%emt 0:5:51]} Rxd8 {[%emt 0:0:9]} 18. Bb3 {[%emt 0:1:56]} Bxb3 {[%emt 0:1:15]} 19. axb3 {[%emt 0:0:8]} a5 {[%emt 0:0:3]} 20. Kf1 {[%emt 0:2:53]} g6 {[%emt 0:8:45]} 21. Ke2 {[%emt 0:2:35]} Kg7 {[%emt 0:0:7]} 22. Ne1 {[%emt 0:3:39]} h5 {[%emt 0:0:47]} 23. Bg5 {[%emt 0:5:16]} Rb8 {[%emt 0:7:36]} 24. Bxf6+ {[%emt 0:2:10]} Kxf6 {[%emt 0:0:5]} 25. Kd2 {[%emt 0:10:36]} Rd8+ {[%emt 0:13:48]} 26. Kc2 {[%emt 0:1:8]} Bh6 {[%emt 0:10:30]} 1/2-1/2

[Event "56th Biel Festival MTO 2023"]
[White "Meshkovs,Nikita"]
[Black "Vasquez Toledo,Cristian"]
[Site "Biel"]
[Round "1.7"]
[Annotator "ChessBase"]
[Result "1-0"]
[Date "2023.07.18"]
[WhiteElo "2565"]
[BlackElo "2233"]
[PlyCount "57"]
[TimeControl "60"]

1. d4 {[%emt 0:0:0]} Nf6 {[%emt 0:0:0]} 2. c4 {[%emt 0:0:0]} e6 {[%emt 0:0:0]} 3. Nc3 {[%emt 0:0:0]} d5 {[%emt 0:0:0]} 4. Nf3 {[%emt 0:0:0]} c6 {[%emt 0:0:0]} 5. g3 {[%emt 0:0:0]} Be7 {[%emt 0:0:0]} 6. Bg2 {[%emt 0:0:0]} O-O {[%emt 0:0:0]} 7. O-O {[%emt 0:0:0]} b6 {[%emt 0:0:0]} 8. Bf4 {[%emt 0:0:0]} Ba6 {[%emt 0:0:0]} 9. cxd5 {[%emt 0:0:53]} cxd5 {[%emt 0:0:0]} 10. Rc1 {[%emt 0:3:41]} Bd6 {[%emt 0:6:7]} 11. Ne5 {[%emt 0:6:48]} Bb7 {[%emt 0:17:46]} 12. Nb5 {[%emt 0:5:7]} Bxe5 {[%emt 0:0:25]} 13. dxe5 {[%emt 0:3:35]} Ne8 {[%emt 0:0:6]} 14. e4 {[%emt 0:23:52]} a6 {[%emt 0:5:30]} 15. Nd6 {[%emt 0:0:14]} Nxd6 {[%emt 0:0:28]} 16. exd6 {[%emt 0:0:7]} dxe4 {[%emt 0:0:47]} 17. Rc7 {[%emt 0:3:23]} Bd5 {[%emt 0:0:18]} 18. Qe2 {[%emt 0:3:3]} Nd7 {[%emt 0:12:43]} 19. Bxe4 {[%emt 0:5:31]} Nf6 {[%emt 0:2:31]} 20. f3 {[%emt 0:6:0]} Re8 {[%emt 0:35:24]} 21. Rd1 {[%emt 0:3:19]} h6 {[%emt 0:8:52]} 22. Qc2 {[%emt 0:5:48]} Rc8 {[%emt 0:3:44]} 23. Be5 {[%emt 0:7:35]} Bxe4 {[%emt 0:2:32]} 24. fxe4 {[%emt 0:2:19]} Nd7 {[%emt 0:0:1]} 25. Bf4 {[%emt 0:1:39]} e5 {[%emt 0:5:7]} 26. Be3 {[%emt 0:0:3]} Rb8 {[%emt 0:0:3]} 27. Qc6 {[%emt 0:1:44]} Nf8 {[%emt 0:0:5]} 28. d7 {[%emt 0:2:13]} Re6 {[%emt 0:0:17]} 29. Qc2 {[%emt 0:0:15]} 1-0

[Event "56th Biel Festival MTO 2023"]
[White "Ermitsch,Magnus"]
[Black "Quesada Perez,Luis Ernesto"]
[Site "Biel"]
[Round "1.8"]
[Annotator "ChessBase"]
[Result "0-1"]
[Date "2023.07.18"]
[WhiteElo "2232"]
[BlackElo "2553"]
[PlyCount "52"]
[TimeControl "60"]

1. e4 {[%emt 0:0:0]} e6 {[%emt 0:0:0]} 2. d4 {[%emt 0:0:0]} d5 {[%emt 0:0:0]} 3. Nc3 {[%emt 0:0:0]} Nf6 {[%emt 0:0:0]} 4. e5 {[%emt 0:0:0]} Nfd7 {[%emt 0:0:0]} 5. Nce2 {[%emt 0:0:0]} c5 {[%emt 0:0:0]} 6. c3 {[%emt 0:0:0]} cxd4 {[%emt 0:0:0]} 7. cxd4 {[%emt 0:0:0]} f6 {[%emt 0:0:0]} 8. f4 {[%emt 0:4:58]} fxe5 {[%emt 0:0:0]} 9. fxe5 {[%emt 0:0:12]} Qh4+ {[%emt 0:0:0]} 10. g3 {[%emt 0:17:19]} Qe4 {[%emt 0:0:0]} 11. Kf2 {[%emt 0:4:43]} Nxe5 {[%emt 0:11:44]} 12. Nf4 {[%emt 0:18:1]} Nbc6 {[%emt 0:0:34]} 13. Be3 {[%emt 0:22:51]} Nc4 {[%emt 0:3:30]} 14. Bxc4 {[%emt 0:4:1]} dxc4 {[%emt 0:1:54]} 15. Nf3 {[%emt 0:3:38]} Be7 {[%emt 0:1:51]} 16. Re1 {[%emt 0:4:41]} O-O {[%emt 0:0:13]} 17. h4 {[%emt 0:9:43]} Nb4 {[%emt 0:11:27]} 18. Bd2 {[%emt 0:8:46]} Nd3+ {[%emt 0:2:16]} 19. Nxd3 {[%emt 0:0:3]} Qxd4+ {[%emt 0:0:41]} 20. Re3 {[%emt 0:0:58]} cxd3 {[%emt 0:0:3]} 21. Bc3 {[%emt 0:0:35]} Qb6 {[%emt 0:0:58]} 22. b4 {[%emt 0:0:14]} Bd7 {[%emt 0:2:16]} 23. Qxd3 {[%emt 0:0:30]} Bc6 {[%emt 0:0:47]} 24. Kg2 {[%emt 0:0:43]} Bxb4 {[%emt 0:8:7]} 25. Rb1 {[%emt 0:0:32]} Rxf3 {[%emt 0:0:13]} 26. Rxf3 {[%emt 0:0:7]} Rf8 {[%emt 0:0:9]} 0-1

[Event "56th Biel Festival MTO 2023"]
[White "Liu,Yan"]
[Black "Urh,Zala"]
[Site "Biel"]
[Round "1.9"]
[Annotator "ChessBase"]
[Result "1-0"]
[Date "2023.07.18"]
[WhiteElo "2542"]
[BlackElo "2231"]
[PlyCount "101"]
[TimeControl "60"]

1. c4 {[%emt 0:0:0]} Nf6 {[%emt 0:0:0]} 2. g3 {[%emt 0:0:0]} e6 {[%emt 0:0:0]} 3. Bg2 {[%emt 0:0:0]} d5 {[%emt 0:0:0]} 4. Nf3 {[%emt 0:0:0]} d4 {[%emt 0:0:0]} 5. d3 {[%emt 0:0:0]} Bb4+ {[%emt 0:0:0]} 6. Nbd2 {[%emt 0:0:0]} a5 {[%emt 0:0:0]} 7. Ne5 {[%emt 0:0:0]} O-O {[%emt 0:2:57]} 8. O-O {[%emt 0:0:0]} Nfd7 {[%emt 0:11:14]} 9. f4 {[%emt 0:8:26]} f6 {[%emt 0:2:42]} 10. Nxd7 {[%emt 0:7:38]} Qxd7 {[%emt 0:0:28]} 11. Nf3 {[%emt 0:3:0]} Bc5 {[%emt 0:5:54]} 12. e4 {[%emt 0:6:18]} dxe3 {[%emt 0:10:25]} 13. d4 {[%emt 0:0:20]} e2 {[%emt 0:0:18]} 14. Qxe2 {[%emt 0:0:6]} Bxd4+ {[%emt 0:0:4]} 15. Nxd4 {[%emt 0:0:13]} Qxd4+ {[%emt 0:0:5]} 16. Be3 {[%emt 0:0:11]} Qd7 {[%emt 0:5:27]} 17. Rad1 {[%emt 0:2:46]} Qe7 {[%emt 0:2:38]} 18. Qh5 {[%emt 0:21:20]} Nd7 {[%emt 0:5:37]} 19. Rd2 {[%emt 0:7:10]} Qf7 {[%emt 0:7:47]} 20. Qd1 {[%emt 0:10:45]} c6 {[%emt 0:2:37]} 21. b3 {[%emt 0:8:41]} Re8 {[%emt 0:1:49]} 22. g4 {[%emt 0:5:2]} a4 {[%emt 0:5:24]} 23. b4 {[%emt 0:2:22]} e5 {[%emt 0:5:50]} 24. b5 {[%emt 0:0:10]} e4 {[%emt 0:17:22]} 25. bxc6 {[%emt 0:2:5]} bxc6 {[%emt 0:0:10]} 26. Rd6 {[%emt 0:2:12]} Qxc4 {[%emt 0:5:43]} 27. Qd2 {[%emt 0:0:48]} Nf8 {[%emt 0:3:32]} 28. f5 {[%emt 0:0:8]} Rb8 {[%emt 0:1:58]} 29. g5 {[%emt 0:1:15]} fxg5 {[%emt 0:0:46]} 30. f6 {[%emt 0:0:15]} gxf6 {[%emt 0:0:27]} 31. Rdxf6 {[%emt 0:0:47]} Qd5 {[%emt 0:1:48]} 32. Qc2 {[%emt 0:9:46]} Ba6 {[%emt 0:2:7]} 33. Rc1 {[%emt 0:3:54]} Qd3 {[%emt 0:0:58]} 34. Qf2 {[%emt 0:0:40]} Rb1 {[%emt 0:0:43]} 35. Qe1 {[%emt 0:0:37]} Rxc1 {[%emt 0:0:18]} 36. Qxc1 {[%emt 0:0:10]} Rb8 {[%emt 0:0:49]} 37. Bf1 {[%emt 0:0:16]} Qd8 {[%emt 0:0:19]} 38. Rxf8+ {[%emt 0:0:27]} Qxf8 {[%emt 0:0:10]} 39. Bxa6 {[%emt 0:0:2]} Qb4 {[%emt 0:0:58]} 40. Bf1 {[%emt 0:0:0]} a3 {[%emt 0:0:0]} 41. Qxc6 {[%emt 0:0:0]} Qb1 {[%emt 0:0:0]} 42. Qd5+ {[%emt 0:0:0]} Kf8 {[%emt 0:0:0]} 43. Bc5+ {[%emt 0:0:0]} Kg7 {[%emt 0:0:0]} 44. Qxg5+ {[%emt 0:0:0]} Kf7 {[%emt 0:0:0]} 45. Qe7+ {[%emt 0:0:0]} Kg6 {[%emt 0:0:0]} 46. Bd4 {[%emt 0:0:0]} Qd1 {[%emt 0:0:0]} 47. Qg7+ {[%emt 0:0:41]} Kf5 {[%emt 0:0:0]} 48. Qf7+ {[%emt 0:0:44]} Kg4 {[%emt 0:0:0]} 49. h3+ {[%emt 0:0:13]} Kh4 {[%emt 0:0:0]} 50. Bf2+ {[%emt 0:0:19]} Kg5 {[%emt 0:0:0]} 51. Be3+ {[%emt 0:0:6]} 1-0

[Event "56th Biel Festival MTO 2023"]
[White "Frey,Fabian"]
[Black "Pranav Anand"]
[Site "Biel"]
[Round "1.10"]
[Annotator "ChessBase"]
[Result "0-1"]
[Date "2023.07.18"]
[WhiteElo "2230"]
[BlackElo "2510"]
[PlyCount "64"]
[TimeControl "60"]

1. e4 {[%emt 0:0:0]} c5 {[%emt 0:0:0]} 2. Nf3 {[%emt 0:0:0]} Nc6 {[%emt 0:0:0]} 3. Bb5 {[%emt 0:0:0]} e6 {[%emt 0:0:0]} 4. Bxc6 {[%emt 0:0:0]} bxc6 {[%emt 0:0:0]} 5. d3 {[%emt 0:0:0]} Qc7 {[%emt 0:0:0]} 6. O-O {[%emt 0:0:0]} Ne7 {[%emt 0:0:0]} 7. Re1 {[%emt 0:6:41]} e5 {[%emt 0:0:47]} 8. c3 {[%emt 0:5:5]} Ng6 {[%emt 0:1:1]} 9. d4 {[%emt 0:0:20]} d6 {[%emt 0:0:19]} 10. Be3 {[%emt 0:4:34]} Be7 {[%emt 0:0:54]} 11. Nbd2 {[%emt 0:2:2]} O-O {[%emt 0:2:50]} 12. dxc5 {[%emt 0:12:48]} d5 {[%emt 0:5:4]} 13. b4 {[%emt 0:12:28]} h6 {[%emt 0:13:52]} 14. a4 {[%emt 0:4:44]} Be6 {[%emt 0:12:27]} 15. Qe2 {[%emt 0:11:32]} f5 {[%emt 0:6:0]} 16. exf5 {[%emt 0:1:11]} Bxf5 {[%emt 0:1:29]} 17. h3 {[%emt 0:10:31]} Rae8 {[%emt 0:2:35]} 18. Nf1 {[%emt 0:1:16]} Qc8 {[%emt 0:9:1]} 19. N1h2 {[%emt 0:7:51]} Bf6 {[%emt 0:2:46]} 20. Qd1 {[%emt 0:3:8]} Bd7 {[%emt 0:6:41]} 21. Qb1 {[%emt 0:6:44]} e4 {[%emt 0:1:20]} 22. Nd4 {[%emt 0:0:36]} Bxh3 {[%emt 0:5:7]} 23. Qd1 {[%emt 0:7:1]} Nh4 {[%emt 0:2:56]} 24. g3 {[%emt 0:1:42]} Ng2 {[%emt 0:0:47]} 25. Re2 {[%emt 0:1:36]} Qc7 {[%emt 0:5:30]} 26. Qd2 {[%emt 0:0:33]} Nxe3 {[%emt 0:0:16]} 27. Rxe3 {[%emt 0:0:37]} Bg5 {[%emt 0:0:11]} 28. Rae1 {[%emt 0:0:36]} h5 {[%emt 0:1:29]} 29. Qe2 {[%emt 0:0:23]} g6 {[%emt 0:0:31]} 30. a5 {[%emt 0:0:47]} Re7 {[%emt 0:2:1]} 31. Qa6 {[%emt 0:0:12]} Ref7 {[%emt 0:2:11]} 32. R3e2 {[%emt 0:0:28]} Rxf2 {[%emt 0:0:23]} 0-1